bitfinex-derivatives/quotes_BNBF0:USTF0_20250617
["timestamp","ask_amount","ask_price","bid_price","bid_amount"]
[1750135499761,0.98609356,655.86,655.53,1.141]
[1750135500065,0.98609356,655.85,655.53,1.141]
[1750135500262,0.98609356,655.84,655.53,1.141]
[1750135500462,0.98609356,655.83,655.53,1.141]
[1750135500664,0.98609356,655.82,655.53,1.141]
[1750135500961,1.13928469,655.87,655.53,1.141]
[1750135501166,2.27853007,656.09,655.53,1.141]
[1750135501167,0.98616142,655.86,655.53,1.141]
[1750135501461,0.98616142,655.85,655.53,1.141]
[1750135501664,0.98616142,655.84,655.53,1.141]
[1750135501858,0.98616142,655.83,655.53,1.141]
[1750135502066,0.98616142,655.88,655.53,1.141]
[1750135502261,0.98616142,655.87,655.53,1.141]
[1750135502460,0.98616142,655.86,655.53,1.141]
[1750135502663,0.98616142,655.89,655.53,1.141]
[1750135502860,0.98616142,655.88,655.53,1.141]
[1750135503059,0.98616142,655.93,655.53,1.141]
[1750135503263,0.98616142,655.92,655.53,1.141]
[1750135503461,0.98616142,655.96,655.53,1.141]
[1750135503666,0.98616142,655.95,655.53,1.141]
[1750135503866,0.98616142,655.94,655.53,1.141]
[1750135504065,0.98616142,655.93,655.53,1.141]
[1750135504263,0.98616142,655.98,655.53,1.141]
[1750135504463,0.98616142,655.97,655.53,1.141]
[1750135504664,0.98616142,655.96,655.53,1.141]
[1750135504868,0.98616142,655.95,655.53,1.141]
[1750135505064,0.98616142,655.94,655.54,1.1]
[1750135505364,0.98616142,655.93,655.54,1.1]
[1750135505569,0.98616142,655.99,655.54,1.1]
[1750135505763,0.51699405,656.01,655.54,1.1]
[1750135505764,0.98616142,655.98,655.54,1.1]
[1750135505967,0.98616142,655.97,655.54,1.1]
[1750135506165,0.98616142,655.96,655.54,1.1]
[1750135506369,0.98616142,655.95,655.54,1.1]
[1750135506670,0.98616142,655.94,655.54,1.1]
[1750135506870,0.98616142,655.99,655.54,1.1]
[1750135507068,0.98616142,655.98,655.54,1.1]
[1750135507268,0.98616142,655.97,655.54,1.1]
[1750135507465,0.98616142,655.96,655.55,0.885]
[1750135507670,0.98616142,655.95,655.55,0.885]
[1750135507870,0.98616142,656.0,655.55,0.885]
[1750135508068,0.98616142,655.99,655.55,0.885]
[1750135508267,0.98616142,655.98,655.55,0.885]
[1750135508470,0.98616142,655.97,655.55,0.885]
[1750135508669,0.98616142,656.01,655.56,0.796]
[1750135508867,0.98616142,656.0,655.56,0.796]
[1750135509069,0.98616142,655.99,655.56,0.796]
[1750135509272,0.98633691,655.98,655.56,0.796]
[1750135509567,0.98633691,656.02,655.56,0.796]
[1750135509772,0.98633691,656.01,655.56,0.796]
[1750135509970,0.98633691,656.0,655.56,0.796]
[1750135510173,0.51637277,656.03,655.56,0.796]
[1750135510369,0.98618152,656.02,655.56,0.796]
[1750135510574,0.98618152,656.01,655.56,0.796]
[1750135510775,0.98618152,656.0,655.56,0.796]
[1750135511071,0.98618152,655.99,655.56,0.796]
[1750135511271,0.98618152,655.98,655.56,0.796]
[1750135511472,0.98618152,656.02,655.56,0.796]
[1750135511672,0.98618152,656.01,655.56,0.796]
[1750135511873,0.98618152,656.0,655.56,0.796]
[1750135512070,0.98604117,655.99,655.41,1.14234227]
[1750135512374,0.98604117,655.98,655.41,1.14234227]
[1750135512575,0.98604117,655.97,655.43,1.14234227]
[1750135512875,1.50216108,656.02,655.43,1.14234227]
[1750135513076,0.98604117,656.01,655.44,1.14234227]
[1750135513375,0.98604117,656.01,655.43,1.14234227]
[1750135513376,0.98604117,656.0,655.43,1.14234227]
[1750135513676,0.98604117,655.99,655.43,1.14234227]
[1750135513975,0.98604117,655.98,655.44,1.14234227]
[1750135514170,0.98604117,655.97,655.44,1.14234227]
[1750135514371,0.98604117,656.0,655.43,1.14234227]
[1750135514574,0.98604117,655.99,655.43,1.14234227]
[1750135514771,0.98590918,655.98,655.43,1.14234227]
[1750135514977,0.98590918,655.97,655.43,1.14234227]
[1750135515174,0.98590918,656.01,655.43,1.14234227]
[1750135515373,0.98590918,656.0,655.43,1.14234227]
[1750135515576,0.98590918,655.99,655.43,1.14234227]
[1750135515772,0.98590918,655.98,655.43,1.14234227]
[1750135515977,0.98590918,656.01,655.43,1.14234227]
[1750135516276,0.98590918,656.0,655.44,1.004]
[1750135516574,0.51605107,656.02,655.44,2.14634227]
[1750135516575,0.98590918,655.99,655.44,2.14634227]
[1750135516774,0.98590918,655.98,655.44,2.14634227]
[1750135516979,0.98590918,656.01,655.44,1.004]
[1750135517181,0.98590918,656.0,655.45,1.233]
[1750135517382,0.98590918,655.99,655.45,1.233]
[1750135517682,0.98572245,655.98,655.45,1.233]
[1750135517878,0.98572245,655.97,655.47,1.14234227]
[1750135518082,0.98572245,655.96,655.47,1.14234227]
[1750135518278,0.98572245,655.99,655.48,1.099]
[1750135518578,0.98572245,655.98,655.48,1.099]
[1750135518783,0.98572245,655.97,655.48,1.099]
[1750135519081,0.98572245,655.96,655.48,1.099]
[1750135519283,0.98572245,655.99,655.48,1.099]
[1750135519484,0.98572245,655.98,655.48,1.099]
[1750135519779,0.98572245,655.97,655.48,1.099]
[1750135519980,0.98572245,655.99,655.48,1.099]
[1750135520180,0.98572245,655.98,655.48,1.099]
[1750135520379,0.51595332,656.0,655.48,1.099]
[1750135520580,0.98562433,655.99,655.48,1.099]
[1750135520778,0.98562433,655.98,655.48,1.099]
[1750135520981,0.98562433,655.97,655.48,1.099]
[1750135521181,0.98562433,655.99,655.48,1.099]
[1750135521380,0.51595332,656.0,655.48,2.23894386]
[1750135521381,0.98562433,655.98,655.48,2.23894386]
[1750135521582,0.98562433,655.99,655.48,2.23894386]
[1750135521880,0.98562433,655.98,655.48,2.23894386]
[1750135522082,0.98562433,656.0,655.48,2.23894386]
[1750135522285,0.98562433,655.99,655.48,2.23894386]
[1750135522582,0.98562433,655.98,655.48,1.099]
[1750135522782,0.98562433,655.97,655.48,1.099]
[1750135522985,0.98562433,655.99,655.48,1.099]
[1750135523286,0.98562433,655.98,655.48,1.099]
[1750135523485,0.98562433,655.97,655.48,1.099]
[1750135523686,0.98562433,655.99,655.48,1.099]
[1750135523881,0.98562433,655.98,655.48,1.099]
[1750135524081,0.98562433,655.97,655.48,1.099]
[1750135524380,0.98562433,655.99,655.48,1.099]
[1750135524582,0.98562433,655.98,655.48,1.099]
[1750135524782,0.98562433,655.97,655.48,1.099]
[1750135524986,0.98562433,655.99,655.48,1.099]
[1750135525184,0.98562433,655.98,655.48,1.099]
[1750135525384,0.98562433,655.97,655.48,1.099]
[1750135525586,0.98562433,655.99,655.48,1.099]
[1750135525888,0.51586576,656.0,655.48,1.099]
[1750135526084,0.98552302,655.99,655.48,1.099]
[1750135526281,0.98552302,655.98,655.48,1.099]
[1750135526484,0.98552302,655.97,655.48,1.099]
[1750135526687,0.98552302,655.99,655.48,1.099]
[1750135526887,0.98552302,655.98,655.48,2.23894386]
[1750135527084,0.98552302,655.97,655.48,2.23894386]
[1750135527285,0.98552302,655.99,655.48,2.23894386]
[1750135527588,0.98552302,655.98,655.48,2.23894386]
[1750135527789,0.98552302,655.97,655.48,2.23894386]
[1750135527989,0.98552302,655.96,655.48,2.23894386]
[1750135528190,0.98552302,655.98,655.48,2.23894386]
[1750135528390,0.98552302,655.97,655.48,2.23894386]
[1750135528590,0.98552302,655.96,655.48,2.23894386]
[1750135528791,0.98552302,655.99,655.48,2.23894386]
[1750135528993,0.98552302,655.98,655.48,2.23894386]
[1750135529287,0.51583634,656.0,655.48,2.23894386]
[1750135529288,0.98552302,655.97,655.48,2.23894386]
[1750135529488,0.98552302,655.99,655.48,2.23894386]
[1750135529788,0.98552302,655.98,655.48,2.23894386]
[1750135529987,0.98552302,655.97,655.48,2.23894386]
[1750135530188,0.98552302,655.98,655.48,2.23894386]
[1750135530388,0.98552302,655.97,655.48,2.23894386]
[1750135530588,0.98552302,655.96,655.48,2.23894386]
[1750135530788,0.98552302,655.99,655.48,2.23894386]
[1750135531087,0.98552302,655.98,655.48,2.23894386]
[1750135531289,0.98552302,655.97,655.48,2.23894386]
[1750135531592,0.98552302,655.96,655.48,2.23894386]
[1750135531790,0.98552302,655.99,655.48,2.23894386]
[1750135532092,0.98552302,655.98,655.48,2.23894386]
[1750135532290,0.98552302,655.97,655.48,2.23894386]
[1750135532493,1.51902004,656.11,655.48,2.23894386]
[1750135532494,0.98552302,655.96,655.48,2.23894386]
[1750135532692,0.98552302,655.98,655.48,1.099]
[1750135532889,0.98552302,655.97,655.48,1.099]
[1750135533095,0.98552302,655.99,655.48,1.099]
[1750135533295,0.98552302,655.98,655.48,1.099]
[1750135533597,0.98552302,655.97,655.48,1.099]
[1750135533792,0.98552302,655.99,655.48,1.099]
[1750135534092,0.98552302,655.98,655.48,1.099]
[1750135534294,0.98546542,655.97,655.48,1.099]
[1750135534491,0.98546542,655.99,655.48,1.099]
[1750135534692,0.98546542,655.98,655.48,1.099]
[1750135534890,0.98546542,655.97,655.48,1.099]
[1750135535093,0.98546542,656.0,655.48,1.099]
[1750135535291,0.98546542,655.99,655.49,0.942]
[1750135535496,0.98546542,655.98,655.49,0.942]
[1750135535790,0.51577122,656.01,655.49,0.942]
[1750135535791,0.98546542,655.97,655.49,0.942]
[1750135535990,0.98546542,656.0,655.49,0.942]
[1750135536190,0.98546542,655.99,655.49,0.942]
[1750135536393,0.98546542,655.98,655.49,0.942]
[1750135536594,0.98546542,655.97,655.49,0.942]
[1750135536793,0.98546542,656.0,655.49,0.942]
[1750135536998,0.98554762,655.99,655.49,0.942]
[1750135537296,0.98554762,655.98,655.49,0.942]
[1750135537492,0.98554762,655.97,655.49,0.942]
[1750135537797,0.98554762,655.96,655.5,1.13]
[1750135537997,0.98554762,655.99,655.5,1.13]
[1750135538293,0.51577122,656.0,655.5,1.13]
[1750135538294,0.98554762,655.98,655.5,1.13]
[1750135538496,0.98554762,655.97,655.5,1.13]
[1750135538797,0.98554762,655.99,655.5,1.13]
[1750135538996,0.98554762,655.98,655.5,1.13]
[1750135539195,0.98554762,655.97,655.5,1.13]
[1750135539396,0.98554762,656.0,655.5,1.13]
[1750135539593,0.98554762,655.99,655.5,1.13]
[1750135539797,0.98567314,655.98,655.5,1.13]
[1750135539998,0.98567314,655.97,655.5,1.13]
[1750135540193,0.98567314,655.96,655.5,1.13]
[1750135540398,0.51587992,656.01,655.5,1.13]
[1750135540695,0.98578601,656.0,655.5,1.13]
[1750135540995,0.98578601,655.99,655.5,1.13]
[1750135541195,0.98578601,655.98,655.5,1.13]
[1750135541498,0.98578601,655.97,655.5,1.13]
[1750135541694,0.98578601,655.96,655.5,1.13]
[1750135541896,0.98578601,655.99,655.5,1.13]
[1750135542102,0.98578601,655.98,655.5,1.13]
[1750135542299,0.98578601,655.97,655.5,1.13]
[1750135542495,0.98578601,655.96,655.5,1.13]
[1750135542700,0.98578601,655.95,655.5,1.13]
[1750135542900,0.98578601,655.94,655.5,1.13]
[1750135543197,0.98578601,655.98,655.5,1.13]
[1750135543401,0.98578601,655.97,655.5,1.13]
[1750135543596,0.98578601,655.96,655.5,1.13]
[1750135543899,0.98578601,655.95,655.5,1.13]
[1750135544097,0.98578601,655.94,655.5,1.13]
[1750135544300,0.98578601,655.93,655.5,1.13]
[1750135544596,0.98578601,655.92,655.5,1.13]
[1750135544899,1.50181624,655.98,655.5,1.13]
[1750135545100,0.98578601,655.97,655.5,1.13]
[1750135545297,1.13737481,655.99,655.5,1.13]
[1750135545596,0.98619137,655.98,655.5,1.13]
[1750135545795,0.98619137,655.97,655.5,1.13]
[1750135545996,0.98619137,655.96,655.5,1.13]
[1750135546200,0.98619137,655.95,655.5,1.13]
[1750135546397,0.98619137,655.94,655.5,2.26994386]
[1750135546601,0.98619137,655.93,655.5,1.13]
[1750135546900,0.98619137,655.92,655.5,1.13]
[1750135547200,0.98619137,655.91,655.5,1.13]
[1750135547400,0.98619137,655.97,655.5,2.26994386]
[1750135547702,0.98644978,655.96,655.5,2.26994386]
[1750135548001,0.98644978,655.95,655.51,0.771]
[1750135548197,0.98645581,655.94,655.51,0.771]
[1750135548397,0.98645581,655.93,655.51,1.91094386]
[1750135548603,0.98645581,655.92,655.53,1.13994386]
[1750135548800,0.51628998,655.98,655.53,1.13994386]
[1750135548801,0.98645581,655.91,655.53,1.13994386]
[1750135549000,0.98645581,655.9,655.53,1.13994386]
[1750135549201,0.98645581,655.89,655.53,1.13994386]
[1750135549403,0.98645581,655.88,655.53,1.13994386]
[1750135549701,0.98645581,655.96,655.51,1.91094386]
[1750135549902,1.50274579,656.03,655.55,1.13994386]
[1750135550101,0.98645581,656.02,655.55,1.13994386]
[1750135550305,0.98645581,656.01,655.55,1.13994386]
[1750135550505,0.98645581,656.0,655.56,2.09494386]
[1750135550701,0.98645581,655.99,655.56,2.09494386]
[1750135551001,0.98684984,656.05,655.56,2.09494386]
[1750135551202,1.13737481,656.08,655.56,2.09494386]
[1750135551405,0.26532783,656.09,655.56,0.955]
[1750135551600,1.139021,656.08,655.56,2.09640818]
[1750135552506,0.98689336,656.07,655.56,2.09640818]
[1750135552700,0.98689336,656.06,655.56,2.09640818]
[1750135552904,0.98689336,656.05,655.56,2.09640818]
[1750135553125,0.98689336,656.04,655.56,2.09640818]
[1750135553306,0.98689336,656.03,655.56,2.09640818]
[1750135553605,0.98689336,656.02,655.56,2.09640818]
[1750135553806,0.98689336,656.01,655.56,2.09640818]
[1750135554006,1.139021,656.08,655.56,2.09640818]
[1750135554204,0.98686919,656.07,655.56,2.09640818]
[1750135554404,0.98686919,656.06,655.56,2.09640818]
[1750135554607,0.98686919,656.05,655.56,2.09640818]
[1750135554807,0.98686919,656.04,655.56,0.955]
[1750135555008,0.98686919,656.03,655.56,0.955]
[1750135555203,0.98686919,656.02,655.56,0.955]
[1750135555409,0.98686919,656.01,655.56,0.955]
[1750135555610,0.98686919,656.0,655.56,0.955]
[1750135555910,0.98686919,655.99,655.57,1.25]
[1750135556110,0.98686919,655.98,655.57,1.25]
[1750135556305,0.98686919,656.06,655.57,1.25]
[1750135556509,0.98686919,656.05,655.57,1.25]
[1750135556710,0.98686919,656.04,655.57,1.25]
[1750135556908,0.98686769,656.03,655.57,1.25]
[1750135557206,0.98686769,656.02,655.57,1.25]
[1750135557410,0.98686769,656.01,655.57,1.25]
[1750135557610,1.50337253,656.06,655.57,1.25]
[1750135557810,0.98686769,656.05,655.57,1.25]
[1750135558007,0.98686769,656.04,655.57,1.25]
[1750135558211,0.98686769,656.03,655.57,1.25]
[1750135558412,0.98686769,656.02,655.57,1.25]
[1750135558707,0.98686769,656.08,655.57,1.25]
[1750135558907,0.98686769,656.07,655.57,1.25]
[1750135559111,0.98686769,656.06,655.57,1.25]
[1750135559307,0.98686769,656.05,655.57,1.25]
[1750135559511,0.98686769,656.04,655.57,1.25]
[1750135559812,0.98708527,656.03,655.57,1.25]
[1750135560013,0.98708527,656.02,655.57,1.25]
[1750135560213,0.98708527,656.01,655.57,1.25]
[1750135560514,0.98708527,656.0,655.57,1.25]
[1750135560713,0.98708527,656.07,655.57,1.25]
[1750135560912,0.98708527,656.06,655.57,1.25]
[1750135561213,0.98708527,656.05,655.57,1.25]
[1750135561408,0.98708527,656.04,655.57,1.25]
[1750135561607,0.98708527,656.03,655.57,1.25]
[1750135561810,0.98708527,656.02,655.57,1.25]
[1750135562012,0.51661796,656.08,655.57,1.25]
[1750135562309,0.98714399,656.07,655.57,1.25]
[1750135562514,0.98714399,656.06,655.57,1.25]
[1750135562716,0.98714399,656.05,655.57,1.25]
[1750135563011,0.98714399,656.04,655.57,1.25]
[1750135563212,0.98714399,656.03,655.57,1.25]
[1750135563415,0.51661796,656.08,655.57,1.25]
[1750135563416,0.98714399,656.02,655.57,1.25]
[1750135563614,0.98714399,656.01,655.58,1.242]
[1750135563812,0.98714399,656.0,655.58,1.242]
[1750135564016,0.98714399,656.07,655.58,1.242]
[1750135564310,0.98714399,656.06,655.58,1.242]
[1750135564518,0.98714399,656.05,655.58,1.242]
[1750135564817,0.98714399,656.04,655.58,1.242]
[1750135565017,0.98714399,656.03,655.58,1.242]
[1750135565217,0.98714399,656.02,655.58,1.242]
[1750135565416,0.98714399,656.01,655.58,1.242]
[1750135565718,0.98714399,656.07,655.58,1.242]
[1750135565914,0.98714399,656.06,655.58,1.242]
[1750135566115,0.98714399,656.05,655.58,1.242]
[1750135566316,0.98714399,656.04,655.58,1.242]
[1750135566514,0.98714399,656.03,655.58,1.242]
[1750135566713,0.98714399,656.02,655.58,1.242]
[1750135567016,0.98714399,656.01,655.58,1.242]
[1750135567215,0.98714399,656.08,655.58,1.242]
[1750135567415,0.98690672,656.07,655.58,1.242]
[1750135567720,0.98690672,656.06,655.58,1.242]
[1750135568014,0.98690672,656.05,655.58,1.242]
[1750135568319,0.98690672,656.04,655.58,1.242]
[1750135568518,0.98690672,656.03,655.58,1.242]
[1750135568714,0.98690672,656.02,655.58,1.242]
[1750135568919,0.98690672,656.01,655.58,1.242]
[1750135569117,0.98690672,656.0,655.58,1.242]
[1750135569320,0.98690672,655.99,655.58,1.242]
[1750135569615,0.98690672,655.98,655.58,1.242]
[1750135569821,0.98690672,656.05,655.58,1.242]
[1750135570120,0.98690672,656.04,655.58,1.242]
[1750135570320,0.98690672,656.03,655.58,1.242]
[1750135570620,0.98682495,656.02,655.58,1.242]
[1750135570817,0.98682495,656.01,655.58,1.242]
[1750135571118,0.98682495,656.0,655.58,1.242]
[1750135571317,0.98682495,655.99,655.58,1.242]
[1750135571516,0.98682495,655.98,655.58,1.242]
[1750135571721,0.98682495,656.04,655.58,1.242]
[1750135571922,0.98682495,656.03,655.58,1.242]
[1750135572122,0.98682495,656.02,655.58,1.242]
[1750135572720,0.51648171,656.05,655.58,1.242]
[1750135572924,1.139021,656.06,655.58,1.242]
[1750135573218,1.139021,656.07,655.59,1.268]
[1750135574920,1.139021,656.07,655.6,0.967]
[1750135575524,1.139021,656.06,655.6,0.967]
[1750135575821,1.139021,656.06,655.61,0.784]
[1750135577025,1.139021,656.05,655.61,0.784]
[1750135577223,0.26532783,656.09,655.61,0.784]
[1750135577224,1.139021,656.07,655.61,0.784]
[1750135578927,0.26532783,656.09,655.61,0.784]
[1750135578928,1.139021,656.06,655.61,0.784]
[1750135579225,0.98680191,656.05,655.61,0.784]
[1750135579426,0.98680191,656.04,655.61,0.784]
[1750135579627,0.98680191,656.03,655.61,0.784]
[1750135579825,0.98680191,656.02,655.61,0.784]
[1750135580125,0.98680191,656.01,655.61,0.784]
[1750135580326,0.98680191,656.0,655.61,0.784]
[1750135580525,0.98680191,655.99,655.61,0.784]
[1750135580723,0.98680191,655.98,655.61,0.784]
[1750135580929,0.98685179,655.97,655.61,0.784]
[1750135581130,0.98685179,656.04,655.61,0.784]
[1750135581329,0.51649574,656.05,655.61,0.784]
[1750135581330,0.98685179,656.03,655.61,0.784]
[1750135581530,0.98685179,656.02,655.61,0.784]
[1750135581830,0.98685179,656.01,655.61,0.784]
[1750135582029,0.98685179,656.0,655.61,0.784]
[1750135582229,0.98685179,655.99,655.61,0.784]
[1750135582529,0.98685179,655.98,655.61,0.784]
[1750135582828,0.98685179,655.97,655.61,0.784]
[1750135583029,0.98685179,655.96,655.61,0.784]
[1750135583229,1.50334753,656.04,655.61,0.784]
[1750135583430,0.98685179,656.03,655.61,0.784]
[1750135583729,0.98685179,656.02,655.61,0.784]
[1750135584030,0.51651273,656.04,655.61,0.784]
[1750135584031,0.98685179,656.01,655.61,0.784]
[1750135584229,0.98685179,656.0,655.61,0.784]
[1750135584429,0.98685179,655.99,655.61,0.784]
[1750135584627,0.98685179,655.98,655.61,0.784]
[1750135584826,0.98685179,655.97,655.61,0.784]
[1750135585026,0.98685179,655.96,655.61,0.784]
[1750135585230,0.98685179,656.04,655.61,0.784]
[1750135585428,0.98685179,656.03,655.61,0.784]
[1750135585632,0.98685179,656.02,655.61,0.784]
[1750135585833,0.98685179,656.01,655.61,0.784]
[1750135586134,0.98685179,656.0,655.61,0.784]
[1750135586333,0.98685179,655.99,655.61,0.784]
[1750135586530,1.139021,656.06,655.61,0.784]
[1750135586831,0.98696764,656.05,655.61,0.784]
[1750135587032,2.12598864,656.04,655.61,1.92540818]
[1750135587233,1.503524,656.03,655.61,1.92540818]
[1750135587535,0.98696764,656.02,655.61,1.92540818]
[1750135587733,0.98696764,656.01,655.61,1.92540818]
[1750135587933,0.98696764,656.0,655.61,1.92540818]
[1750135588135,0.98696764,655.99,655.61,1.92540818]
[1750135588334,0.98696764,655.98,655.61,1.92540818]
[1750135588533,0.98696764,655.97,655.61,1.92540818]
[1750135588836,0.98696764,655.96,655.61,1.92540818]
[1750135589035,0.98696764,655.95,655.61,1.92540818]
[1750135589236,0.98696764,655.94,655.61,1.92540818]
[1750135589434,0.98702367,656.02,655.61,1.92540818]
[1750135589737,0.98702367,656.01,655.61,1.92540818]
[1750135589938,0.98702367,656.0,655.61,1.92540818]
[1750135590138,0.98702367,655.99,655.61,1.92540818]
[1750135590335,0.98702367,655.98,655.61,1.92540818]
[1750135590536,0.98702367,655.97,655.61,1.92540818]
[1750135590735,0.98702367,655.96,655.61,1.92540818]
[1750135590936,0.98702367,655.95,655.61,1.14140818]
[1750135591238,0.98702367,655.94,655.61,1.14140818]
[1750135591442,0.98702367,656.02,655.61,1.14140818]
[1750135591736,0.98702367,656.01,655.59,1.268]
[1750135591935,1.139021,656.06,655.62,1.032]
[1750135591936,0.98702367,656.0,655.62,1.032]
[1750135592140,0.98702367,655.99,655.62,1.032]
[1750135592340,0.98716344,655.98,655.62,1.032]
[1750135592541,0.98716344,655.97,655.62,1.032]
[1750135592840,0.98716344,656.05,655.62,1.032]
[1750135593039,0.98716344,656.04,655.62,1.032]
[1750135593239,0.98716344,656.03,655.62,1.032]
[1750135593438,0.98716344,656.02,655.62,1.032]
[1750135593640,0.98716344,656.01,655.62,1.032]
[1750135593840,1.139021,656.07,655.62,1.032]
[1750135594544,1.139021,656.08,655.63,1.023]
[1750135595344,1.139021,656.07,655.63,1.023]
[1750135595840,1.139021,656.09,655.63,1.023]
[1750135597241,1.139021,656.09,655.64,1.001]
[1750135598645,1.139021,656.17,655.64,1.001]
[1750135598841,1.139021,656.25,655.64,1.001]
[1750135599445,1.139021,656.26,655.64,1.001]
[1750135599643,1.139021,656.25,655.64,1.001]
[1750135600445,1.139021,656.26,655.64,1.001]
[1750135602547,1.139021,656.27,655.64,1.001]
[1750135605546,1.40428512,656.28,655.64,1.001]
[1750135606350,1.139021,656.27,655.65,1.099]
[1750135606547,1.40428512,656.28,655.65,1.099]
[1750135607247,1.139021,656.27,655.65,1.099]
[1750135608156,1.40428512,656.28,655.65,1.099]
[1750135608555,1.139021,656.22,655.68,1.14140818]
[1750135608850,1.139021,656.22,655.69,1.14140818]
[1750135610157,1.139021,656.2,655.71,1.14140818]
[1750135611454,1.139021,656.21,655.71,1.14140818]
[1750135612661,0.98541037,656.2,655.71,1.14140818]
[1750135612861,0.98541037,656.19,655.71,1.14140818]
[1750135613059,0.98541037,656.18,655.72,1.496]
[1750135613362,0.98541037,656.17,655.72,1.496]
[1750135613557,0.98541037,656.16,655.72,1.496]
[1750135613756,0.98541037,656.15,655.72,1.496]
[1750135613961,0.98541037,656.19,655.72,1.496]
[1750135614162,0.98541037,656.18,655.72,1.496]
[1750135614360,0.98541037,656.17,655.72,1.496]
[1750135614559,0.98538922,656.16,655.72,1.496]
[1750135614859,0.98538922,656.19,655.72,1.496]
[1750135615061,0.98538922,656.18,655.72,1.496]
[1750135615263,1.50118285,656.2,655.72,1.496]
[1750135615660,1.50118285,656.25,655.72,1.496]
[1750135615866,0.98538922,656.24,655.72,1.496]
[1750135616164,0.98538922,656.23,655.72,1.496]
[1750135616367,0.98538922,656.22,655.72,1.496]
[1750135616660,0.98538922,656.21,655.72,1.496]
[1750135616865,0.98538922,656.24,655.72,1.496]
[1750135617060,0.98538922,656.23,655.72,1.496]
[1750135617262,0.98538922,656.22,655.72,1.496]
[1750135617567,0.98538922,656.21,655.72,1.496]
[1750135617764,0.98538922,656.25,655.72,1.496]
[1750135617960,0.98538922,656.24,655.72,1.496]
[1750135618166,0.98538922,656.23,655.72,1.496]
[1750135618461,0.98538922,656.22,655.72,1.496]
[1750135618660,0.98538922,656.21,655.72,1.496]
[1750135618864,0.98538922,656.26,655.72,1.496]
[1750135619161,0.98538922,656.25,655.72,1.496]
[1750135619461,0.98538922,656.24,655.72,1.496]
[1750135619662,0.98538922,656.23,655.72,1.496]
[1750135619862,0.98538922,656.22,655.72,1.496]
[1750135620064,0.5157439,656.26,655.72,1.496]
[1750135620065,0.98538922,656.21,655.72,1.496]
[1750135620263,0.98538922,656.25,655.72,1.496]
[1750135620464,0.98538922,656.24,655.72,1.496]
[1750135620666,0.98538922,656.23,655.72,1.496]
[1750135620967,0.98538922,656.22,655.73,1.16]
[1750135621163,0.98538922,656.25,655.73,1.16]
[1750135621365,0.98538922,656.24,655.73,1.16]
[1750135621662,0.98538922,656.23,655.73,1.16]
[1750135621864,0.98538922,656.22,655.73,1.16]
[1750135622066,0.98538922,656.25,655.73,1.16]
[1750135622263,0.98538922,656.24,655.73,1.16]
[1750135622466,0.98522278,656.26,655.73,1.16]
[1750135622664,0.98522278,656.25,655.73,1.16]
[1750135622963,0.98522278,656.24,655.73,1.16]
[1750135623267,0.98522278,656.27,655.73,1.16]
[1750135623468,0.98522278,656.26,655.73,1.16]
[1750135623763,0.98522278,656.27,655.73,1.16]
[1750135623969,0.98522278,656.26,655.73,1.16]
[1750135624267,0.51571959,656.3,655.73,1.16]
[1750135624268,0.98522278,656.29,655.73,1.16]
[1750135624461,0.98522278,656.28,655.73,1.16]
[1750135624666,0.98522278,656.27,655.73,1.16]
[1750135624864,0.98522278,656.3,655.73,1.16]
[1750135625065,0.98522278,656.29,655.73,1.16]
[1750135625268,0.98517489,656.28,655.73,1.16]
[1750135625468,0.98517489,656.27,655.73,1.16]
[1750135625666,0.98517489,656.26,655.73,1.16]
[1750135625867,0.98517489,656.25,655.73,1.16]
[1750135626072,0.98517489,656.24,655.73,1.16]
[1750135626270,0.98517489,656.23,655.73,1.16]
[1750135626473,0.98517489,656.26,655.73,1.16]
[1750135626770,0.98517489,656.25,655.73,1.16]